Workbook

Sheet 全市
A1: 附件
A2: 崇左市2025年度中小学教师公开招聘（第二批）考试总成绩及入围体检、考核人员名单 (含免笔试人员)
A3: 招聘单位名称 | B3: 招聘岗位 | C3: 招聘 人数 | D3: 岗位编码 | E3: 姓名 | F3: 准考证号 | G3: 笔试成绩 | H3: 面试成绩 | I3: 考试 总成绩 | J3: 岗位 排名 | K3: 是否进入体检、考察环节
A4: 崇左市高级中学 | B4: 语文教师 | C4: 2 | D4: 1452100001 | E4: 冯秋敏 | F4: 12504263015 | G4: 140.50 | H4: 82.13 | I4: 76.19 | J4: 1 | K4: 是
E5: 黄玉娟 | F5: 12504260809 | G5: 141.00 | H5: 80.45 | I5: 75.48 | J5: 2 | K5: 是
E6: 韦佳瑶 | F6: 12504262629 | G6: 140.50 | H6: 78.60 | I6: 74.43 | J6: 3
E7: 易世恒 | F7: 12504262424 | G7: 141.50 | H7: 74.61 | I7: 72.68 | J7: 4
E8: 杨立乾 | F8: 22504260905 | G8: 162.00 | H8: 缺考
E9: 梅婷 | F9: 22504260821 | G9: 146.00 | H9: 缺考
A10: 崇左市高级中学 | B10: 数学教师 | C10: 3 | D10: 1452100002 | E10: 周欢怡 | F10: 22504260404 | G10: 144.50 | H10: 81.76 | I10: 77.01 | J10: 1 | K10: 是
E11: 赵小婷 | F11: 12504262829 | G11: 140.00 | H11: 82.54 | I11: 76.27 | J11: 2 | K11: 是
E12: 黄莉莉 | F12: 12504260523 | G12: 135.00 | H12: 81.80 | I12: 74.65 | J12: 3 | K12: 是
E13: 苏雨善 | F13: 22504260223 | G13: 140.00 | H13: 75.52 | I13: 72.76 | J13: 4
E14: 慕庆民 | F14: 22504261924 | G14: 123.50 | H14: 81.51 | I14: 71.63 | J14: 5
E15: 林小瑜 | F15: 12504263323 | G15: 136.50 | H15: 73.41 | I15: 70.83 | J15: 6
E16: 黄耀吉 | F16: 22504266323 | G16: 129.00 | H16: 缺考
E17: 黄芸森 | F17: 12504263004 | G17: 125.50 | H17: 缺考
E18: 李丽娜 | F18: 12504264804 | G18: 121.00 | H18: 缺考
A19: 崇左市高级中学 | B19: 英语教师 | C19: 2 | D19: 1452100003 | E19: 吴林萍 | F19: 22504263304 | G19: 145.50 | H19: 83.60 | I19: 78.18 | J19: 1 | K19: 是
E20: 陆婧 | F20: 12504262615 | G20: 136.50 | H20: 85.80 | I20: 77.03 | J20: 2 | K20: 是
E21: 李金玉 | F21: 22504264524 | G21: 135.50 | H21: 82.40 | I21: 75.08 | J21: 3
E22: 黄婷 | F22: 22504266928 | G22: 145.00 | H22: 缺考
E23: 吴旭龙 | F23: 12504260828 | G23: 144.50 | H23: 缺考
E24: 韦龙玉 | F24: 22504266018 | G24: 135.50 | H24: 缺考
A25: 崇左市高级中学 | B25: 物理教师 | C25: 1 | D25: 1452100004 | E25: 黄诗媛 | F25: 12504262723 | G25: 150.50 | H25: 83.06 | I25: 79.16 | J25: 1 | K25: 是
E26: 姬生爽 | F26: 12504262214 | G26: 139.50 | H26: 78.82 | I26: 74.29 | J26: 2
E27: 黄颜梅 | F27: 12504261830 | G27: 135.50 | H27: 缺考
A28: 崇左市高级中学 | B28: 地理教师 | C28: 2 | D28: 1452100005 | E28: 黄妍瑛 | F28: 12504261428 | G28: 146.50 | H28: 83.40 | I28: 78.33 | J28: 1 | K28: 是
E29: 黄许格 | F29: 22504266616 | G29: 143.00 | H29: 85.10 | I29: 78.30 | J29: 2 | K29: 是
E30: 赵淑梅 | F30: 12504264722 | G30: 140.50 | H30: 83.60 | I30: 76.93 | J30: 3
E31: 关雨露 | F31: 22504266109 | G31: 133.00 | H31: 82.40 | I31: 74.45 | J31: 4
E32: 邓灿 | F32: 12504262130 | G32: 134.50 | H32: 缺考
E33: 梁月钊 | F33: 22504262625 | G33: 134.00 | H33: 缺考
A34: 崇左市高级中学 | B34: 心理教师 | C34: 1 | D34: 1452100006 | E34: 李勤玲 | F34: 12504264212 | G34: 150.00 | H34: 81.54 | I34: 78.27 | J34: 1 | K34: 是
E35: 黄佳 | F35: 22504266617 | G35: 138.00 | H35: 81.02 | I35: 75.01 | J35: 2
E36: 班春丽 | F36: 12504265429 | G36: 139.00 | H36: 79.40 | I36: 74.45 | J36: 3
A37: 广西民族师范学院附属中学 | B37: 语文教师 | C37: 2 | D37: 1452100007 | E37: 张凤 | F37: 22504263621 | G37: 138.00 | H37: 87.37 | I37: 78.19 | J37: 1 | K37: 是
E38: 罗婧溪 | F38: 12504262512 | G38: 136.50 | H38: 87.44 | I38: 77.85 | J38: 2 | K38: 是
E39: 农春倪 | F39: 12504261624 | G39: 144.00 | H39: 82.07 | I39: 77.04 | J39: 3
E40: 黄婧婧 | F40: 22504263226 | G40: 139.00 | H40: 83.74 | I40: 76.62 | J40: 4
E41: 韦思行 | F41: 12504262503 | G41: 134.00 | H41: 81.67 | I41: 74.34 | J41: 5
E42: 玉其怀 | F42: 12504265417 | G42: 136.50 | H42: 缺考
A43: 广西民族师范学院附属中学 | B43: 数学教师 | C43: 1 | D43: 1452100008 | E43: 黄丽莉 | F43: 12504264411 | G43: 116.00 | H43: 83.90 | I43: 70.95 | J43: 1 | K43: 是
A44: 广西民族师范学院附属中学 | B44: 英语教师 | C44: 1 | D44: 1452100009 | E44: 许英姿 | F44: 12504260515 | G44: 129.50 | H44: 83.60 | I44: 74.18 | J44: 1 | K44: 是
E45: 冼文惠 | F45: 22504264118 | G45: 137.50 | H45: 79.60 | I45: 74.18 | J45: 1
E46: 甘乘佑俊 | F46: 12504260212 | G46: 131.00 | H46: 73.00 | I46: 69.25 | J46: 3
A47: 广西民族师范学院附属中学 | B47: 物理教师 | C47: 1 | D47: 1452100010 | E47: 陆高云 | F47: 12504263417 | G47: 140.50 | H47: 84.62 | I47: 77.44 | J47: 1 | K47: 是
E48: 唐幸美 | F48: 22504262030 | G48: 140.00 | H48: 80.46 | I48: 75.23 | J48: 2
E49: 阮琪 | F49: 22504262615 | G49: 148.50 | H49: 缺考
A50: 广西民族师范学院附属中学 | B50: 化学实验员 | C50: 1 | D50: 1452100011 | E50: 李秋仪 | F50: 12504261120 | G50: 152.00 | H50: 84.18 | I50: 80.09 | J50: 1 | K50: 是
E51: 陆泽妍 | F51: 12504265804 | G51: 133.00 | H51: 83.78 | I51: 75.14 | J51: 2
E52: 石鹏 | F52: 12504261214 | G52: 135.00 | H52: 缺考
A53: 广西民族师范学院附属中学 | B53: 生物教师 | C53: 1 | D53: 1452100012 | E53: 凌雪梅 | F53: 12504262910 | G53: 155.50 | H53: 83.78 | I53: 80.77 | J53: 1 | K53: 是
E54: 韦诺晴 | F54: 12504261612 | G54: 139.50 | H54: 85.24 | I54: 77.50 | J54: 2
E55: 韦石水 | F55: 12504266322 | G55: 147.00 | H55: 78.36 | I55: 75.93 | J55: 3
A56: 广西民族师范学院附属中学 | B56: 政治教师 | C56: 2 | D56: 1452100013 | E56: 陆翠柳 | F56: 12504265618 | G56: 150.50 | H56: 84.24 | I56: 79.75 | J56: 1 | K56: 是
E57: 潘文兰 | F57: 12504262027 | G57: 152.50 | H57: 75.36 | I57: 75.81 | J57: 2 | K57: 是
E58: 梁雪萍 | F58: 12504262410 | G58: 147.00 | H58: 缺考
E59: 殷覃燕 | F59: 12504265028 | G59: 146.00 | H59: 缺考
E60: 黄雯 | F60: 22504263906 | G60: 146.00 | H60: 缺考
E61: 莫翠柳 | F61: 12504260130 | G61: 145.50 | H61: 缺考
A62: 广西民族师范学院附属中学 | B62: 地理教师 | C62: 1 | D62: 1452100014 | E62: 黄欣 | F62: 22504263904 | G62: 132.50 | H62: 80.20 | I62: 73.23 | J62: 1 | K62: 是
E63: 黄德君 | F63: 12504260320 | G63: 143.00 | H63: 缺考
E64: 颜静蕾 | F64: 12504260525 | G64: 134.50 | H64: 缺考
A65: 广西民族师范学院附属第二中学 | B65: 语文教师 | C65: 2 | D65: 1452100015 | E65: 周兰姣 | F65: 22504265727 | G65: 144.00 | H65: 85.21 | I65: 78.61 | J65: 1 | K65: 是
E66: 黄伟玲 | F66: 22504264726 | G66: 152.00 | H66: 79.42 | I66: 77.71 | J66: 2 | K66: 是
E67: 梁丹丹 | F67: 22504265112 | G67: 141.50 | H67: 83.14 | I67: 76.95 | J67: 3
E68: 李竺林 | F68: 22504262521 | G68: 159.00 | H68: 8.40 | I68: 43.95 | J68: 4
E69: 林婴梅 | F69: 22504261502 | G69: 149.50 | H69: 缺考
E70: 庞文舞 | F70: 12504263119 | G70: 137.50 | H70: 缺考
A71: 广西民族师范学院附属第二中学 | B71: 英语教师 | C71: 1 | D71: 1452100016 | E71: 梁艳莹 | F71: 12504262914 | G71: 127.50 | H71: 83.40 | I71: 73.58 | J71: 1 | K71: 是
E72: 唐佳静 | F72: 22504263824 | G72: 125.50 | H72: 77.20 | I72: 69.98 | J72: 2
E73: 向志勤 | F73: 22504262120 | G73: 121.50 | H73: 77.10 | I73: 68.93 | J73: 3
A74: 广西民族师范学院附属第二中学 | B74: 历史教师 | C74: 1 | D74: 1452100017 | E74: 阮寒梅 | F74: 22504262430 | G74: 133.50 | H74: 86.10 | I74: 76.43 | J74: 1 | K74: 是
E75: 徐海玲 | F75: 12504263319 | G75: 136.50 | H75: 79.88 | I75: 74.07 | J75: 2
E76: 覃圣楣 | F76: 12504260903 | G76: 158.50 | H76: 缺考
A77: 广西民族师范学院附属小学教育集团 | B77: 语文教师1 | C77: 6 | D77: 1452100018 | E77: 董莞云 | F77: 22504264813 | G77: 158.50 | H77: 90.13 | I77: 84.69 | J77: 1 | K77: 是
E78: 包小连 | F78: 12504264512 | G78: 146.50 | H78: 88.73 | I78: 80.99 | J78: 2 | K78: 是
E79: 刘铭敏 | F79: 12504265723 | G79: 150.00 | H79: 85.65 | I79: 80.33 | J79: 3 | K79: 是
E80: 李秀丽 | F80: 22504262816 | G80: 151.50 | H80: 83.16 | I80: 79.46 | J80: 4 | K80: 是
E81: 黄丽婕 | F81: 22504262618 | G81: 143.50 | H81: 86.44 | I81: 79.10 | J81: 5 | K81: 是
E82: 韩静璇 | F82: 22504263529 | G82: 141.50 | H82: 86.99 | I82: 78.87 | J82: 6 | K82: 是
E83: 廖雪娴 | F83: 12504263305 | G83: 146.00 | H83: 84.32 | I83: 78.66 | J83: 7
E84: 陈之婷 | F84: 22504262601 | G84: 144.00 | H84: 83.21 | I84: 77.61 | J84: 8
E85: 陆心瑶 | F85: 22504260719 | G85: 152.00 | H85: 75.75 | I85: 75.88 | J85: 9
E86: 潘思思 | F86: 22504260330 | G86: 142.00 | H86: 80.62 | I86: 75.81 | J86: 10
E87: 何艳宁 | F87: 22504265911 | G87: 143.50 | H87: 78.29 | I87: 75.02 | J87: 11
E88: 余莹莹 | F88: 22504263107 | G88: 141.50 | H88: 78.95 | I88: 74.85 | J88: 12
E89: 廖丹梅 | F89: 12504261713 | G89: 154.00 | H89: 71.85 | I89: 74.43 | J89: 13
E90: 张绮婷 | F90: 12504260309 | G90: 146.50 | H90: 73.48 | I90: 73.37 | J90: 14
E91: 何海妹 | F91: 22504265515 | G91: 144.50 | H91: 74.37 | I91: 73.31 | J91: 15
E92: 曾洪娟 | F92: 12504264006 | G92: 151.50 | H92: 缺考
E93: 陈予嫔 | F93: 12504264129 | G93: 148.00 | H93: 缺考
E94: 陆瑶 | F94: 12504265317 | G94: 147.50 | H94: 缺考
E95: 李卓鹃 | F95: 22504265830 | G95: 142.50 | H95: 缺考
A96: 广西民族师范学院附属小学教育集团 | B96: 语文教师2 | C96: 6 | D96: 1452100019 | E96: 卢玲妹 | F96: 12504265023 | G96: 156.00 | H96: 85.33 | I96: 81.67 | J96: 1 | K96: 是
E97: 宋振静 | F97: 22504261510 | G97: 161.50 | H97: 81.41 | I97: 81.08 | J97: 2 | K97: 是
E98: 刘小玲 | F98: 12504266625 | G98: 158.00 | H98: 79.56 | I98: 79.28 | J98: 3 | K98: 是
E99: 吴小蝶 | F99: 22504261411 | G99: 142.50 | H99: 86.84 | I99: 79.05 | J99: 4 | K99: 是
E100: 石家荔 | F100: 12504265306 | G100: 148.50 | H100: 83.06 | I100: 78.66 | J100: 5 | K100: 是
E101: 陈秋萍 | F101: 12504261805 | G101: 148.50 | H101: 82.44 | I101: 78.35 | J101: 6 | K101: 是
E102: 宋诗萍 | F102: 12504266505 | G102: 153.00 | H102: 78.01 | I102: 77.26 | J102: 7
E103: 蒋凤美 | F103: 12504262704 | G103: 143.50 | H103: 81.56 | I103: 76.66 | J103: 8
E104: 何继婷 | F104: 12504262705 | G104: 141.50 | H104: 80.05 | I104: 75.40 | J104: 9
E105: 李炎媚 | F105: 22504262930 | G105: 148.50 | H105: 76.28 | I105: 75.27 | J105: 10
E106: 黄菲 | F106: 22504260724 | G106: 143.50 | H106: 77.99 | I106: 74.87 | J106: 11
E107: 刘美莹 | F107: 22504260213 | G107: 143.50 | H107: 76.21 | I107: 73.98 | J107: 12
E108: 王丹 | F108: 12504266328 | G108: 141.00 | H108: 77.35 | I108: 73.93 | J108: 13
E109: 黎献恒 | F109: 22504265704 | G109: 141.50 | H109: 76.22 | I109: 73.49 | J109: 14
E110: 黄景婷 | F110: 22504264523 | G110: 144.50 | H110: 73.61 | I110: 72.93 | J110: 15
E111: 何文迪 | F111: 12504265722 | G111: 147.00 | H111: 缺考
E112: 韦苏洁 | F112: 22504264202 | G112: 144.00 | H112: 缺考
E113: 陈晓春 | F113: 22504266522 | G113: 141.00 | H113: 缺考
A114: 广西民族师范学院附属小学教育集团 | B114: 数学教师1 | C114: 6 | D114: 1452100020 | E114: 梁玉 | F114: 12504261025 | G114: 160.50 | H114: 80.64 | I114: 80.45 | J114: 1 | K114: 是
E115: 姜丽蓉 | F115: 12504263016 | G115: 147.50 | H115: 84.72 | I115: 79.24 | J115: 2 | K115: 是
E116: 周星 | F116: 12504262230 | G116: 149.50 | H116: 82.81 | I116: 78.78 | J116: 3 | K116: 是
E117: 李的艳 | F117: 12504262703 | G117: 150.00 | H117: 78.72 | I117: 76.86 | J117: 4 | K117: 是
E118: 庞爽 | F118: 22504266218 | G118: 145.00 | H118: 79.43 | I118: 75.97 | J118: 5 | K118: 是
E119: 李焕霞 | F119: 22504266814 | G119: 139.50 | H119: 81.66 | I119: 75.71 | J119: 6 | K119: 是
E120: 刘凤英 | F120: 22504260703 | G120: 138.00 | H120: 81.97 | I120: 75.49 | J120: 7
E121: 张耀芳 | F121: 12504263503 | G121: 140.00 | H121: 80.96 | I121: 75.48 | J121: 8
E122: 廖心如 | F122: 12504266629 | G122: 142.50 | H122: 78.00 | I122: 74.63 | J122: 9
E123: 韦海媚 | F123: 22504266116 | G123: 148.50 | H123: 74.80 | I123: 74.53 | J123: 10
E124: 龙美秀 | F124: 12504264919 | G124: 139.00 | H124: 79.08 | I124: 74.29 | J124: 11
E125: 梁莹 | F125: 12504262129 | G125: 145.50 | H125: 75.61 | I125: 74.18 | J125: 12
E126: 陈淑铃 | F126: 22504265021 | G126: 141.00 | H126: 72.16 | I126: 71.33 | J126: 13
E127: 陈梦霞 | F127: 22504265424 | G127: 149.50 | H127: 缺考
E128: 覃朝秀 | F128: 12504265524 | G128: 144.50 | H128: 缺考
E129: 李玉兰 | F129: 22504264126 | G129: 143.00 | H129: 缺考
E130: 甘兰兰 | F130: 22504262210 | G130: 140.50 | H130: 缺考
E131: 覃雪榕 | F131: 22504260212 | G131: 139.00 | H131: 缺考
E132: 吴春钰 | F132: 22504263619 | G132: 138.00 | H132: 缺考
A133: 广西民族师范学院附属小学教育集团 | B133: 数学教师2 | C133: 6 | D133: 1452100021 | E133: 张美玲 | F133: 22504266428 | G133: 149.50 | H133: 85.88 | I133: 80.32 | J133: 1 | K133: 是
E134: 冯玉霞 | F134: 12504261221 | G134: 155.50 | H134: 81.70 | I134: 79.73 | J134: 2 | K134: 是
E135: 包玉萍 | F135: 22504260208 | G135: 152.50 | H135: 83.14 | I135: 79.70 | J135: 3 | K135: 是
E136: 邓志慧 | F136: 22504261802 | G136: 146.00 | H136: 85.64 | I136: 79.32 | J136: 4 | K136: 是
E137: 李媛 | F137: 12504262509 | G137: 145.00 | H137: 85.60 | I137: 79.05 | J137: 5 | K137: 是
E138: 吴树花 | F138: 12504266729 | G138: 145.50 | H138: 84.46 | I138: 78.61 | J138: 6 | K138: 是
E139: 丘小明 | F139: 12504264130 | G139: 142.00 | H139: 84.82 | I139: 77.91 | J139: 7
E140: 廖绍卫 | F140: 22504262025 | G140: 152.00 | H140: 78.98 | I140: 77.49 | J140: 8
E141: 唐艳群 | F141: 12504265114 | G141: 151.00 | H141: 77.80 | I141: 76.65 | J141: 9
E142: 何永梅 | F142: 12504261211 | G142: 146.00 | H142: 78.64 | I142: 75.82 | J142: 10
E143: 覃木兰 | F143: 12504266605 | G143: 145.00 | H143: 76.86 | I143: 74.68 | J143: 11
E144: 原纪梅 | F144: 12504261606 | G144: 143.00 | H144: 75.30 | I144: 73.40 | J144: 12
E145: 陈皆伶 | F145: 12504261602 | G145: 143.00 | H145: 74.14 | I145: 72.82 | J145: 13
E146: 吕尚锦 | F146: 12504263724 | G146: 153.50 | H146: 缺考
E147: 周彩虹 | F147: 22504266727 | G147: 149.50 | H147: 缺考
E148: 蒋歧玉 | F148: 12504264328 | G148: 142.50 | H148: 缺考
E149: 陈思明 | F149: 22504265114 | G149: 142.50 | H149: 缺考
E150: 唐佳悦 | F150: 22504263917 | G150: 141.50 | H150: 缺考
A151: 广西民族师范学院附属小学教育集团 | B151: 英语教师 | C151: 7 | D151: 1452100022 | E151: 谢颖 | F151: 12504260813 | G151: 158.00 | H151: 83.30 | I151: 81.15 | J151: 1 | K151: 是
E152: 农会周 | F152: 22504264816 | G152: 150.50 | H152: 85.84 | I152: 80.55 | J152: 2 | K152: 是
E153: 覃芳妮 | F153: 22504264117 | G153: 154.00 | H153: 80.35 | I153: 78.68 | J153: 3 | K153: 是
E154: 曹丽清 | F154: 22504263113 | G154: 151.50 | H154: 80.78 | I154: 78.27 | J154: 4 | K154: 是
E155: 胡婷婷 | F155: 12504263019 | G155: 148.00 | H155: 82.18 | I155: 78.09 | J155: 5 | K155: 是
E156: 王凤怡 | F156: 12504262505 | G156: 144.00 | H156: 83.79 | I156: 77.90 | J156: 6 | K156: 是
E157: 麦寒雪 | F157: 22504262826 | G157: 133.50 | H157: 87.19 | I157: 76.97 | J157: 7 | K157: 是
E158: 甘芳榕 | F158: 22504261508 | G158: 139.50 | H158: 83.06 | I158: 76.41 | J158: 8
E159: 王斐 | F159: 22504260111 | G159: 141.50 | H159: 81.99 | I159: 76.37 | J159: 9
E160: 李连贯 | F160: 12504266820 | G160: 141.50 | H160: 80.18 | I160: 75.47 | J160: 10
E161: 凌巧 | F161: 12504265913 | G161: 138.00 | H161: 79.65 | I161: 74.33 | J161: 11
E162: 罗诗丽 | F162: 12504262305 | G162: 134.00 | H162: 81.47 | I162: 74.24 | J162: 12
E163: 李沈莺 | F163: 22504261518 | G163: 138.50 | H163: 78.03 | I163: 73.64 | J163: 13
E164: 高小娜 | F164: 12504263821 | G164: 139.00 | H164: 77.52 | I164: 73.51 | J164: 14
E165: 潘月妍 | F165: 12504263703 | G165: 139.00 | H165: 76.86 | I165: 73.18 | J165: 15
E166: 陆东莲 | F166: 12504263825 | G166: 134.00 | H166: 78.29 | I166: 72.65 | J166: 16
E167: 梁崇瑛 | F167: 22504260418 | G167: 150.00 | H167: 缺考
E168: 梁美琳 | F168: 22504261819 | G168: 147.00 | H168: 缺考
E169: 许敏慧 | F169: 22504260221 | G169: 146.50 | H169: 缺考
E170: 张琦伟 | F170: 12504260116 | G170: 137.00 | H170: 缺考
E171: 梁雪婷 | F171: 12504262205 | G171: 134.00 | H171: 缺考
A172: 广西民族师范学院附属小学教育集团 | B172: 体育教师 | C172: 3 | D172: 1452100023 | E172: 郑植峰 | F172: 12504260604 | G172: 148.50 | H172: 80.40 | I172: 77.33 | J172: 1 | K172: 是
E173: 罗先锋 | F173: 12504263630 | G173: 144.00 | H173: 81.30 | I173: 76.65 | J173: 2 | K173: 是
E174: 黄建友 | F174: 12504260208 | G174: 133.50 | H174: 85.60 | I174: 76.18 | J174: 3 | K174: 是
E175: 龙名煌 | F175: 12504264116 | G175: 139.00 | H175: 82.60 | I175: 76.05 | J175: 4
E176: 蔡琼珍 | F176: 22504260613 | G176: 139.00 | H176: 82.40 | I176: 75.95 | J176: 5
E177: 李鑫培 | F177: 22504265525 | G177: 144.50 | H177: 77.30 | I177: 74.78 | J177: 6
E178: 赵祥旺 | F178: 22504262412 | G178: 142.00 | H178: 78.10 | I178: 74.55 | J178: 7
E179: 岑竞 | F179: 12504265319 | G179: 134.50 | H179: 81.40 | I179: 74.33 | J179: 7
E180: 赵小丹 | F180: 22504263119 | G180: 134.00 | H180: 78.30 | I180: 72.65 | J180: 8
A181: 广西民族师范学院附属小学教育集团 | B181: 美术教师 | C181: 3 | D181: 1452100024 | E181: 陈威权 | F181: 22504266216 | G181: 150.50 | H181: 82.10 | I181: 78.68 | J181: 1 | K181: 是
E182: 韦真真 | F182: 22504261005 | G182: 137.50 | H182: 86.07 | I182: 77.41 | J182: 2 | K182: 是
E183: 刘淑敏 | F183: 22504264801 | G183: 138.50 | H183: 85.31 | I183: 77.28 | J183: 3 | K183: 是
E184: 卢丽梅 | F184: 12504262419 | G184: 136.50 | H184: 85.08 | I184: 76.67 | J184: 4
E185: 许小凤 | F185: 22504262325 | G185: 142.50 | H185: 81.49 | I185: 76.37 | J185: 5
E186: 黄琪棋 | F186: 12504264614 | G186: 136.00 | H186: 83.37 | I186: 75.69 | J186: 6
E187: 李舒云 | F187: 22504266118 | G187: 141.50 | H187: 80.61 | I187: 75.68 | J187: 7
E188: 韦玉青 | F188: 12504261125 | G188: 137.00 | H188: 76.85 | I188: 72.68 | J188: 8
E189: 黄雪芳 | F189: 22504264929 | G189: 138.50 | H189: 缺考
E190: 郭一帆 | F190: 22504266129 | G190: 136.00 | H190: 缺考
A191: 广西民族师范学院附属小学教育集团 | B191: 音乐教师 | C191: 2 | D191: 1452100025 | E191: 农德聪 | F191: 12504261007 | G191: 168.00 | H191: 81.95 | I191: 82.98 | J191: 1 | K191: 是
E192: 韦旭弘 | F192: 22504261707 | G192: 133.50 | H192: 87.70 | I192: 77.23 | J192: 2 | K192: 是
E193: 李溢婷 | F193: 22504264007 | G193: 135.50 | H193: 85.60 | I193: 76.68 | J193: 3
E194: 梁海清 | F194: 12504262601 | G194: 138.00 | H194: 84.31 | I194: 76.66 | J194: 4
E195: 陈晓贤 | F195: 12504261425 | G195: 133.50 | H195: 84.08 | I195: 75.42 | J195: 5
E196: 邓家昌 | F196: 12504266429 | G196: 142.00 | H196: 缺考
E197: 李林梅 | F197: 22504265609 | G197: 140.00 | H197: 缺考
A198: 广西民族师范学院附属小学教育集团 | B198: 科学教师 | C198: 3 | D198: 1452100026 | E198: 莫爱莲 | F198: 12504266707 | G198: 146.00 | H198: 84.90 | I198: 78.95 | J198: 1 | K198: 是
E199: 鲁建梅 | F199: 12504266507 | G199: 136.50 | H199: 86.10 | I199: 77.18 | J199: 2 | K199: 是
E200: 李欢欢 | F200: 22504266523 | G200: 145.00 | H200: 79.80 | I200: 76.15 | J200: 3 | K200: 是
... 1128 more rows
